bitfinex/quotes_ETHUSD_20240612
["timestamp","ask_amount","ask_price","bid_price","bid_amount"]
[1718224360400,2.4552,3551.1,3550.0,0.675]
[1718224360712,2.4552,3551.1,3550.0,2.366]
[1718224361015,2.4552,3551.1,3550.0,5.366]
[1718224361406,2.4552,3551.1,3550.0,2.366]
[1718224362200,2.4552,3551.1,3550.2,3.75]
[1718224362506,2.4552,3551.1,3550.4,1.691]
[1718224363666,2.4552,3551.1,3550.5,0.05631819]
[1718224364504,2.4552,3551.1,3550.4,1.691]
[1718224365291,2.4552,3551.1,3550.5,0.05631821]
[1718224366899,2.4552,3551.1,3550.4,1.691]
[1718224367212,2.4552,3551.1,3550.5,2.54029862]
[1718224368788,2.4552,3551.1,3550.6,3.0]
[1718224371595,2.4552,3551.1,3550.7,0.02504305]
[1718224371881,2.4552,3551.1,3550.7,0.08136129]
[1718224372700,2.4552,3551.1,3550.7,0.02504305]
[1718224373024,2.4552,3551.1,3550.8,0.55653417]
[1718224376047,2.4552,3551.1,3550.7,0.02504305]
[1718224379040,2.4552,3551.1,3550.8,0.857]
[1718224383125,2.4552,3551.1,3550.7,0.02504305]
[1718224384134,2.4552,3551.1,3550.9,0.857]
[1718224387036,1.35216179,3552.0,3551.0,0.05631818]
[1718224387347,2.3217,3551.9,3551.3,0.857]
[1718224387534,2.3217,3551.9,3551.3,0.91331018]
[1718224388660,2.3217,3551.9,3551.3,0.857]
[1718224389028,2.3217,3552.1,3551.6,0.857]
[1718224390062,2.3217,3553.0,3552.1,1.691]
[1718224390372,2.3217,3553.0,3552.2,0.2548]
[1718224390539,2.3217,3553.0,3552.4,0.857]
[1718224390955,2.3217,3553.0,3552.3,0.05629409]
[1718224391468,2.3217,3553.0,3552.2,0.2548]
[1718224392231,2.3217,3552.7,3551.4,7.46]
[1718224392473,2.3217,3552.5,3551.4,7.46]
[1718224392655,2.3217,3552.3,3551.4,7.46]
[1718224393053,1.35182632,3552.2,3551.4,7.46]
[1718224393285,1.35182632,3552.2,3550.8,9.514]
[1718224393451,1.35182632,3552.2,3550.9,2.6424]
[1718224393776,3.75794514,3552.1,3550.9,2.6424]
[1718224393985,2.3245,3552.0,3550.9,2.6424]
[1718224394272,2.3245,3551.9,3551.0,3.0]
[1718224395128,2.3245,3551.9,3551.1,0.0563131]
[1718224395346,2.3245,3551.9,3551.1,1.52127131]
[1718224395542,2.3245,3551.8,3550.9,3.9514]
[1718224396740,2.3245,3551.8,3551.0,0.05631516]
[1718224396981,2.3245,3551.6,3550.0,7.46]
[1718224397273,1.23673316,3552.8,3549.1,12.33]
[1718224397274,2.3245,3551.4,3549.5,2.054]
[1718224397473,2.3245,3551.2,3549.5,2.054]
[1718224397653,2.3212,3551.0,3549.6,1.691]
[1718224397854,2.3212,3550.9,3549.6,1.691]
[1718224398682,2.3212,3550.9,3549.5,2.054]
[1718224398978,2.3212,3550.7,3549.6,0.9514]
[1718224399152,1.43344514,3550.6,3549.6,0.9514]
[1718224399478,1.43344514,3550.6,3549.3,3.745]
[1718224399971,1.43344514,3550.6,3549.4,3.0]
[1718224401059,2.3212,3550.7,3549.5,1.74733569]
[1718224401378,2.3212,3550.7,3549.8,1.691]
[1718224401580,2.3212,3550.7,3549.9,0.640764]
[1718224401746,2.3212,3550.7,3549.9,0.93756935]
[1718224401941,2.3212,3550.7,3549.9,3.93756935]
[1718224402276,2.3212,3550.7,3549.9,3.88124188]
[1718224402487,2.3212,3550.7,3549.8,4.691]
[1718224402649,2.3212,3550.7,3549.9,3.0]
[1718224402852,2.3212,3550.7,3549.8,1.691]
[1718224403391,2.3212,3550.7,3549.7,1.691]
[1718224405294,2.3212,3550.7,3549.5,4.691]
[1718224405445,2.62112,3550.6,3549.5,4.691]
[1718224405652,2.389,3550.4,3549.5,3.0]
[1718224405847,2.389,3550.2,3549.2,0.58443653]
[1718224406168,0.23212,3550.6,3549.0,7.46]
[1718224406169,2.389,3550.0,3549.0,7.46]
[1718224406332,1.43344514,3549.9,3549.0,7.46]
[1718224406537,2.77124451,3549.8,3548.7,0.60949369]
[1718224406814,2.389,3549.8,3548.7,0.02505716]
[1718224408714,2.389,3549.8,3548.7,4.71605716]
[1718224409309,2.389,3549.8,3548.7,5.41527151]
[1718224409495,2.389,3549.8,3548.8,0.07469232]
[1718224409694,2.389,3549.8,3548.9,0.02505575]
[1718224409918,2.389,3549.8,3549.0,1.691]
[1718224410122,2.389,3549.8,3549.1,0.02505434]
[1718224411436,2.389,3549.8,3549.2,1.691]
[1718224411735,2.389,3549.8,3549.3,0.02505293]
[1718224412093,2.3576,3549.6,3548.2,1.71161953]
[1718224412290,2.054,3549.9,3548.2,1.71161953]
[1718224412291,2.3576,3549.4,3548.2,1.127183]
[1718224412490,1.43344514,3549.3,3548.2,1.127183]
[1718224412706,2.3576,3549.4,3548.3,0.04087418]
[1718224412936,2.3576,3549.4,3548.2,1.127183]
[1718224413137,2.3576,3549.4,3548.3,1.691]
[1718224413307,2.3576,3549.4,3548.4,0.4872183]
[1718224415222,2.3576,3549.4,3548.4,2.1782183]
[1718224415426,2.3576,3549.4,3548.5,3.745]
[1718224415725,2.3576,3549.4,3548.6,3.0]
[1718224417031,2.3576,3549.4,3548.6,4.691]
[1718224417227,2.3576,3549.4,3548.7,0.72322183]
[1718224417555,2.3576,3549.4,3548.8,0.01503614]
[1718224419166,7.46,3550.7,3548.7,2.41422183]
[1718224419167,2.2589,3550.5,3548.9,3.745]
[1718224419355,1.43344514,3550.4,3549.1,1.691]
[1718224419554,1.43344514,3550.4,3549.2,0.68013416]
[1718224421298,2.4626,3550.3,3549.2,0.68013416]
[1718224421575,2.4626,3550.1,3548.8,4.691]
[1718224421761,3.87524514,3550.0,3548.8,1.691]
[1718224424089,2.3786,3549.9,3548.8,1.691]
[1718224424675,3.81204514,3549.9,3548.8,1.691]
[1718224424988,3.81204514,3549.9,3548.9,0.74682218]
[1718224427282,3.81204514,3549.9,3548.7,4.691]
[1718224429595,2.3786,3549.9,3549.1,2.054]
[1718224429789,2.3786,3549.9,3549.2,0.0563413]
[1718224429988,2.3786,3549.9,3549.3,0.05633971]
[1718224430397,2.3786,3549.9,3549.3,0.26737368]
[1718224430814,2.3786,3549.9,3549.3,0.21103397]
[1718224431101,2.3786,3549.9,3548.9,1.691]
[1718224431621,2.3786,3549.9,3548.9,4.691]
[1718224433201,2.3786,3549.9,3549.0,0.05634138]
[1718224433896,2.3786,3549.9,3549.2,3.745]
[1718224434103,2.3786,3549.9,3549.3,3.05633895]
[1718224434414,2.3786,3549.9,3549.4,0.6801339]
[1718224434582,2.3786,3549.9,3549.5,0.05633896]
[1718224435092,1.35257241,3551.1,3549.5,0.05633896]
[1718224435268,2.2761,3550.9,3549.5,0.05633896]
[1718224435463,2.2761,3550.7,3549.5,0.05633896]
[1718224435702,1.43344514,3550.6,3549.5,0.80448625]
[1718224436511,2.64705451,3550.7,3549.5,2.49548625]
[1718224436692,2.2761,3550.7,3549.6,2.054]
[1718224437002,2.2761,3550.7,3549.7,0.05633378]
[1718224437309,2.2761,3550.7,3549.8,0.05633377]
[1718224440274,2.2761,3550.7,3549.6,6.745]
[1718224443285,2.3957,3550.6,3549.6,3.0]
[1718224443492,2.3957,3550.6,3549.3,1.15531343]
[1718224443493,2.3957,3550.4,3549.4,0.58443653]
[1718224443905,2.3957,3550.4,3549.2,7.32943653]
[1718224444098,2.3957,3550.4,3549.3,0.58443653]
[1718224445412,2.3957,3550.4,3549.4,2.38069003]
[1718224445613,2.3957,3550.4,3549.5,2.8034793]
[1718224445912,2.3957,3550.4,3549.6,3.0]
[1718224446731,2.3957,3550.4,3549.5,1.1124793]
[1718224446883,2.3957,3550.4,3549.4,3.0]
[1718224447246,2.3957,3550.4,3549.3,5.27543653]
[1718224447813,2.3957,3550.2,3549.3,3.58443653]
[1718224448012,2.3957,3550.2,3549.3,3.0]
[1718224448418,2.3957,3550.2,3549.2,5.054]
[1718224448620,2.3864,3550.0,3549.2,5.054]
[1718224448806,2.3864,3550.0,3549.2,2.054]
[1718224449929,2.3864,3550.0,3549.3,0.05634124]
[1718224450128,2.3864,3550.0,3549.2,3.745]
[1718224450339,1.35252516,3551.2,3549.3,3.05633821]
[1718224450340,2.3864,3551.1,3549.3,3.05633821]
[1718224450628,2.3864,3550.9,3549.3,3.64077474]
[1718224450816,2.3864,3550.7,3549.3,3.58443653]
[1718224451022,2.3864,3550.5,3549.3,3.58443653]
[1718224451242,3.81984514,3550.5,3549.3,3.58443653]
[1718224452225,2.3864,3550.5,3549.3,5.27543653]
[1718224452433,2.3864,3550.5,3549.6,3.745]
[1718224452633,2.3864,3550.5,3549.7,4.691]
[1718224452998,2.3864,3550.5,3549.7,5.27543653]
[1718224453197,2.3864,3550.9,3550.0,2.054]
[1718224453505,2.3864,3550.9,3550.1,0.0563285]
[1718224453738,2.3864,3550.9,3550.1,0.77824887]
[1718224453925,2.3864,3550.9,3550.2,0.0563282]
[1718224454134,2.3864,3550.9,3550.3,0.05632463]
[1718224454499,2.3864,3552.1,3550.4,3.745]
[1718224454702,2.3864,3552.1,3550.6,1.691]
[1718224454703,1.43344514,3552.0,3550.6,1.691]
[1718224454932,0.38198451,3551.9,3550.6,1.98240099]
[1718224455144,1.81542965,3551.9,3550.6,1.98240099]
[1718224456235,0.38198451,3551.9,3550.7,0.05631624]
[1718224456436,0.38198451,3551.9,3550.6,1.98240099]
[1718224456437,0.38198451,3551.9,3550.8,2.11031466]
[1718224457144,0.38198451,3551.9,3550.8,2.054]
[1718224458044,0.38198451,3551.9,3550.8,4.4486401]
[1718224458337,2.3864,3552.1,3550.9,3.0]
[1718224458504,3.81984514,3552.1,3550.9,3.0]
[1718224458706,2.3864,3552.1,3551.2,2.054]
[1718224458947,2.3864,3552.1,3551.3,0.05630753]
[1718224460097,0.23217,3552.9,3551.3,4.74730753]
[1718224460302,2.2542,3552.8,3551.7,1.691]
[1718224460498,2.2542,3552.8,3551.7,4.691]
[1718224471309,1.43344514,3552.7,3551.7,3.0]
[1718224471510,2.2705,3552.5,3551.5,3.0]
[1718224471853,2.2705,3552.5,3551.8,3.0]
[1718224471854,3.70394514,3552.5,3551.8,3.0]
[1718224472037,3.70394514,3552.5,3551.5,3.0]
[1718224472342,3.70394514,3552.5,3551.3,4.691]
[1718224474252,4.79233192,3553.8,3551.3,4.691]
[1718224474253,2.2583,3553.6,3552.0,2.054]
[1718224474434,3.44063248,3553.8,3552.0,2.054]
[1718224474435,2.2583,3553.4,3552.0,2.054]
[1718224474645,1.43344514,3553.3,3552.0,2.054]
[1718224475030,1.43344514,3553.3,3551.8,3.0]
[1718224475226,1.43344514,3553.3,3551.7,4.691]
[1718224475426,0.36917451,3553.2,3551.8,0.6745]
[1718224475626,1.43344514,3553.1,3551.8,0.6745]
[1718224475850,2.4809,3553.0,3551.8,0.6745]
[1718224476047,1.43344514,3552.9,3551.8,0.6745]
[1718224477681,2.4809,3552.8,3551.7,3.0]
[1718224477835,1.43344514,3552.7,3551.3,4.691]
[1718224480849,2.4177,3552.6,3551.3,4.691]
[1718224481054,1.81855965,3552.5,3551.3,6.1615757]
[1718224481874,1.81855965,3552.5,3551.3,4.4705757]
[1718224482366,1.81855965,3552.5,3551.3,3.0]
[1718224482573,1.81855965,3552.5,3551.2,5.054]
[1718224485284,2.4177,3552.6,3551.3,1.691]
[1718224485483,2.4177,3552.6,3551.3,4.691]
[1718224487639,1.43344514,3552.5,3551.3,4.691]
[1718224487844,1.43344514,3552.5,3551.1,3.745]
[1718224487845,2.2912,3552.4,3551.1,3.745]
[1718224488081,3.72464514,3552.4,3551.2,3.72524945]
[1718224489658,2.2912,3552.3,3551.2,3.72524945]
[1718224492580,2.2912,3552.3,3551.3,0.05630897]
[1718224493297,2.4371,3552.6,3551.5,3.745]
[1718224493468,2.4371,3552.6,3551.6,5.12743204]
[1718224495491,2.4322,3552.4,3550.9,0.58443653]
[1718224495786,3.86564514,3552.3,3551.0,0.0563158]
[1718224500869,1.43344514,3552.3,3551.0,0.0563158]
[1718224501099,2.55764451,3552.2,3550.9,3.0]
[1718224501399,2.3892,3552.0,3550.9,3.0]
[1718224501704,1.43344514,3551.9,3550.9,3.0]
[1718224501907,1.43344514,3551.9,3550.7,3.0]
[1718224504199,2.4886,3551.8,3550.7,3.0]
[1718224504413,2.4886,3551.8,3550.8,0.73294365]
[1718224505634,2.4886,3551.8,3551.0,2.054]
[1718224505932,2.4886,3551.8,3551.1,0.05631455]
[1718224506911,2.4886,3551.8,3551.4,2.054]
[1718224509719,2.4886,3551.8,3551.5,0.05630791]
[1718224509924,2.4886,3551.8,3551.6,0.21103079]
[1718224512251,2.3796,3552.9,3551.6,0.21103079]
[1718224512451,1.43344514,3552.8,3551.7,0.05630372]
[1718224512631,1.43344514,3552.8,3551.8,0.05630243]
[1718224512854,1.81474965,3552.8,3551.8,0.05630243]
[1718224513786,1.81474965,3552.8,3551.6,0.21103079]
[1718224514075,2.3165,3552.7,3551.6,0.21103079]
[1718224517686,2.3165,3552.7,3551.7,0.05630173]
[1718224517850,2.3165,3552.7,3551.8,0.05630173]
[1718224518035,2.3165,3552.7,3551.6,0.21103079]
[1718224518233,2.3165,3552.7,3551.7,0.69560308]
[1718224522240,2.3165,3552.7,3551.5,3.0]
[1718224522495,2.3165,3552.7,3551.4,4.691]
[1718224522975,2.4906,3552.5,3551.4,3.0]
[1718224523159,2.4906,3552.2,3551.2,0.856]
[1718224523359,0.856,3552.3,3551.2,0.856]
[1718224523360,2.4906,3552.0,3551.2,0.856]
[1718224523546,1.43344514,3551.9,3551.2,0.856]
[1718224523972,1.43344514,3551.9,3551.4,0.856]
[1718224526942,1.43344514,3551.9,3551.0,3.0]
[1718224529356,1.43344514,3551.9,3550.8,5.056]
[1718224529674,1.43344514,3551.9,3550.9,0.76162518]
[1718224529885,1.43344514,3551.9,3550.9,3.76162518]
[1718224531444,0.07413159,3551.8,3550.9,3.76162518]
[1718224532377,0.07413159,3551.8,3551.0,0.05631589]
[1718224532573,1.43344514,3551.9,3550.9,3.76162518]
[1718224532780,2.4006,3551.8,3550.9,3.0]
[1718224532987,2.4006,3551.8,3550.8,2.056]
[1718224533192,0.07384296,3551.7,3550.8,2.056]
[1718224533498,0.06637108,3551.7,3550.8,2.056]
[1718224534363,2.4006,3551.6,3550.8,2.056]
[1718224534546,2.4006,3551.6,3550.8,3.4767]
[1718224534743,2.4006,3551.6,3550.9,3.0]
[1718224534949,2.4006,3551.5,3550.9,3.0]
[1718224535183,0.07339744,3551.4,3550.6,3.0]
[1718224535490,2.2763,3551.3,3550.6,3.0]
[1718224536366,2.64727451,3551.3,3550.6,3.0]
[1718224537060,2.64727451,3551.3,3550.5,7.46]
[1718224537061,2.2763,3551.1,3550.5,7.46]
[1718224537280,3.70974514,3550.9,3549.9,0.58443653]
[1718224537480,3.70974514,3550.9,3549.1,9.19850889]
[1718224537481,2.2763,3550.8,3549.5,0.58443653]
[1718224537680,2.4729,3550.6,3549.3,0.58443653]
[1718224537880,1.43344514,3550.5,3549.3,0.58443653]
[1718224538083,1.50612822,3550.5,3549.1,2.056]
[1718224538268,1.50612822,3550.5,3548.9,1.96743265]
[1718224538578,1.50612822,3550.5,3549.1,2.056]
[1718224538780,1.50612822,3550.5,3549.2,0.40234327]
[1718224539449,1.50612822,3550.5,3549.3,0.05634304]
[1718224539855,1.50612822,3550.5,3549.2,2.45834327]
[1718224540751,1.50612822,3550.5,3549.3,0.05634303]
[1718224540950,1.50612822,3550.5,3549.3,3.05634303]
[1718224541265,1.50612822,3550.5,3549.4,0.55146863]
[1718224542092,1.50612822,3550.5,3549.5,0.05634303]
[1718224542785,1.50612822,3550.5,3549.5,2.056]
[1718224542786,0.07268308,3550.5,3549.5,2.056]
[1718224543195,2.4729,3550.6,3549.5,2.056]
[1718224544751,3.90634514,3550.6,3549.5,2.056]
[1718224544981,0.07182908,3550.5,3549.5,2.056]
[1718224545203,0.07182908,3550.5,3549.6,0.2056]
[1718224545401,0.07182908,3550.5,3549.6,0.26193797]
[1718224546203,0.07182908,3550.5,3549.6,0.2056]
[1718224548364,0.07182908,3550.5,3549.6,0.26193801]
[1718224549984,2.4729,3550.6,3549.6,3.2056]
[1718224550183,2.4729,3550.6,3549.7,0.69526]
[1718224551118,3.90634514,3550.6,3549.7,0.69526]
[1718224551413,0.07108492,3550.5,3549.7,0.69526]
[1718224552907,0.07108492,3550.5,3550.2,0.857]
[1718224557600,1.50453006,3550.5,3550.2,0.857]
[1718224562632,1.50453006,3550.5,3549.3,17.30065466]
[1718224562633,2.2904,3550.3,3549.3,3.0]
[1718224562839,2.2904,3550.3,3549.2,0.40234327]
[1718224562840,2.2904,3550.1,3549.9,0.857]
[1718224563212,0.07069518,3550.0,3549.9,0.857]
[1718224563929,2.2904,3550.5,3549.9,0.857]
[1718224564145,2.2904,3550.5,3549.3,2.02904345]
[1718224564146,2.2904,3550.5,3550.4,0.857]
[1718224564555,2.2904,3551.6,3550.4,0.857]
[1718224564716,1.43344514,3551.5,3551.1,0.857]
[1718224565646,1.80582965,3551.5,3551.1,0.857]
[1718224565814,2.2904,3551.4,3551.1,0.857]
[1718224566015,3.72384514,3551.4,3551.1,0.857]
[1718224566836,0.07157386,3551.3,3551.1,0.857]
[1718224567052,0.07157386,3551.3,3550.9,0.857]
[1718224570318,3.72384514,3551.4,3550.9,0.857]
[1718224574765,3.72384514,3551.4,3551.1,0.857]
[1718224574965,0.07183076,3551.3,3551.1,0.857]
[1718224575175,3.72384514,3551.4,3551.1,0.857]
[1718224575456,3.72384514,3551.4,3551.3,0.857]
[1718224575457,2.2904,3551.4,3551.3,0.857]
[1718224575824,2.2904,3551.4,3551.1,0.857]
[1718224576457,2.2904,3551.4,3550.5,3.0]
[1718224576662,2.2904,3551.4,3551.0,0.857]
[1718224576957,2.2904,3551.4,3550.5,3.0]
[1718224577126,2.2904,3551.4,3551.0,0.857]
[1718224578579,2.2904,3551.4,3551.2,0.857]
[1718224583871,2.3117,3552.3,3551.3,0.05631831]
[1718224584093,2.3117,3552.3,3552.1,0.857]
[1718224584231,0.06758409,3552.2,3552.1,0.857]
[1718224584762,2.3117,3552.3,3552.1,0.857]
[1718224587564,3.0,3553.5,3550.9,7.46]
[1718224587565,2.4569,3552.1,3550.9,7.46]
[1718224587737,1.43344514,3552.0,3551.2,0.857]
[1718224587948,1.43344514,3552.0,3550.7,3.0]
[1718224588150,1.43344514,3552.0,3551.4,0.857]
[1718224588151,0.06296383,3551.9,3551.4,0.857]
[1718224588372,0.06291802,3551.8,3551.4,0.857]
[1718224588730,0.06291802,3551.8,3551.6,0.857]
[1718224589089,0.06291802,3551.8,3551.0,2.055]
[1718224589236,1.43344514,3551.9,3551.0,2.055]
[1718224590468,2.4569,3552.1,3551.0,2.055]
[1718224590773,2.4569,3552.1,3551.4,2.055]
[1718224591100,2.4569,3552.1,3551.1,0.2055]
[1718224591286,2.4569,3552.1,3551.2,0.05631138]
[1718224591665,2.4569,3552.1,3551.1,0.2055]
[1718224592674,2.4569,3552.1,3551.2,0.05631136]
[1718224592975,2.4569,3552.1,3551.3,2.241]
[1718224593173,2.4569,3552.1,3551.3,5.241]
[1718224593361,2.4569,3552.1,3551.4,3.746]
[1718224593563,2.4569,3552.1,3551.5,3.0]
[1718224594064,2.4048,3553.2,3551.8,2.055]
[1718224594264,0.06242556,3552.0,3551.9,0.21113047]
[1718224594578,1.43344514,3553.1,3551.9,0.21113047]
[1718224595014,0.06337136,3553.0,3551.9,0.21113047]
[1718224595159,1.4968165,3553.0,3552.0,0.05629877]
[1718224595363,0.06337136,3553.0,3552.0,0.05629877]
[1718224595669,2.4048,3553.2,3552.1,0.40134292]
[1718224595864,2.4048,3553.2,3552.2,2.11129527]
[1718224596093,2.4048,3553.2,3552.3,0.05629366]
[1718224598397,2.4048,3553.2,3552.2,5.055]
[1718224599686,1.43344514,3553.1,3552.2,3.0]
[1718224599891,0.38382451,3553.0,3551.9,3.21113047]
[1718224600206,1.43344514,3553.1,3551.9,3.21113047]
[1718224606501,1.3519347,3553.8,3552.1,1.691]
[1718224606814,1.3519347,3553.8,3552.0,0.64766269]
[1718224606815,1.43344514,3553.8,3552.7,2.055]
[1718224606983,0.4876583,3553.7,3552.7,2.055]
[1718224607306,0.4264109,3553.7,3552.7,2.055]
[1718224607609,0.4264109,3553.7,3552.8,0.05628657]
[1718224608119,2.91217428,3554.9,3553.6,2.055]
[1718224608273,3.85904514,3554.9,3553.7,0.05626915]
[1718224608473,3.85904514,3554.9,3553.8,0.05626756]
[1718224608474,0.05777562,3554.8,3553.8,0.05626756]
[1718224608676,0.39168208,3554.7,3553.8,0.05626756]
[1718224609032,1.8828571,3554.7,3553.7,3.0]
[1718224609171,0.05772988,3554.7,3553.7,3.0]
[1718224609371,2.4256,3554.9,3553.7,3.0]
[1718224609619,3.85904514,3554.9,3553.7,3.0]
[1718224609780,2.4256,3554.7,3553.7,3.0]
[1718224609982,2.4256,3554.7,3553.7,0.3]
[1718224610172,0.05801195,3554.6,3553.8,3.43461476]
[1718224610377,0.05801195,3554.6,3554.3,2.055]
[1718224610594,0.1202029,3555.6,3554.3,2.055]
[1718224610803,1.43344514,3555.5,3554.4,0.05626067]
[1718224611009,0.3979248,3555.4,3554.4,0.05626067]
[1718224611221,1.83136994,3555.4,3554.3,2.055]
[1718224611512,0.05646393,3555.3,3554.3,2.055]
[1718224611873,0.05646393,3555.3,3554.4,2.30023694]
[1718224612119,0.05646393,3555.3,3555.1,2.055]
[1718224612344,0.1202029,3555.6,3555.1,2.055]
[1718224614139,2.3566,3555.5,3554.9,3.0]
[1718224614279,2.3566,3555.5,3554.9,0.6744]
[1718224614608,0.05599987,3555.4,3554.9,0.6744]
[1718224614846,0.05264709,3555.3,3555.1,1.689]
[1718224615117,2.3566,3557.2,3555.5,1.689]
[1718224615341,0.44011054,3557.0,3555.9,2.055]
[1718224615470,1.87355568,3557.0,3555.9,2.055]
[1718224615894,0.44011054,3557.0,3556.0,1.689]
[1718224616214,0.44011054,3557.0,3556.0,5.239]
[1718224616410,0.44011054,3557.0,3556.0,5.9684]
[1718224616617,0.44011054,3557.0,3556.1,0.05623144]
[1718224617177,0.44011054,3557.0,3556.0,3.0]
[1718224617178,1.87355568,3557.0,3556.0,3.0]
[1718224617377,1.87355568,3557.0,3555.8,7.46]
[1718224617614,0.42301557,3556.9,3555.9,3.0]
[1718224617973,1.43344514,3556.8,3555.9,3.0]
[1718224619116,2.3318,3556.7,3555.0,7.46]
[1718224619313,1.43344514,3556.6,3555.0,7.46]
[1718224619517,0.37652451,3556.5,3555.0,7.46]
[1718224619815,3.76524514,3556.4,3555.0,7.46]
[1718224620124,3.76524514,3556.4,3554.7,7.46]
[1718224620326,3.76524514,3556.4,3554.6,2.055]
[1718224620327,2.3318,3556.1,3554.3,7.46]
[1718224620491,1.43344514,3556.0,3554.4,0.0562605]
[1718224620696,2.3318,3556.1,3554.5,3.41153288]
[1718224620895,2.3318,3556.1,3554.9,2.055]
[1718224621092,2.3318,3556.1,3555.0,0.05624811]
[1718224621502,2.3318,3556.1,3554.9,3.744]
[1718224621723,2.3318,3556.1,3555.0,3.0]
[1718224621925,2.56498,3556.1,3555.0,3.0]
[1718224622127,2.56498,3556.1,3555.1,0.05624815]
[1718224622431,0.04401025,3556.0,3555.0,3.0]
[1718224622627,0.04401025,3556.0,3554.9,4.689]
[1718224622928,2.3318,3556.1,3555.1,0.05624816]
[1718224623094,0.04395063,3555.9,3555.1,0.73627298]
[1718224623427,2.3318,3556.1,3555.1,0.73627298]
[1718224623633,0.04390841,3555.8,3555.1,0.68002482]
[1718224623832,0.04399982,3556.0,3555.1,0.68002482]
[1718224624255,2.3318,3556.1,3555.1,0.68002482]
[1718224624466,0.04398194,3555.9,3555.1,0.68002482]
[1718224624623,2.3318,3556.1,3555.1,0.68002482]
[1718224624823,0.04402765,3556.0,3555.1,0.68002482]
[1718224625468,0.04402765,3556.0,3555.1,0.05624853]
[1718224625758,2.56498,3556.1,3555.1,0.05624853]
[1718224625949,3.99842514,3556.1,3555.1,0.05624853]
[1718224626319,0.04402765,3556.0,3554.8,4.689]
[1718224627464,0.04402765,3556.0,3554.9,0.05625051]
[1718224627670,0.04402765,3556.0,3555.0,1.22052505]
[1718224631083,0.04402765,3556.0,3555.1,0.056163]
[1718224631257,3.0,3556.9,3555.4,1.689]
[1718224631258,2.3455,3556.9,3555.4,1.689]
[1718224631585,0.44011054,3557.0,3555.4,1.689]
[1718224631586,0.04294484,3555.9,3555.4,3.0]
[1718224631887,2.3455,3556.7,3555.1,3.0]
[1718224632046,0.0400022,3555.8,3555.2,0.64719731]
[1718224632252,1.43344514,3556.6,3555.2,0.64719731]
[1718224632477,0.03995649,3555.7,3555.2,0.64719731]
[1718224632676,1.43344514,3556.6,3555.2,0.64719731]
[1718224632887,0.03991078,3555.6,3555.1,3.0]
[1718224633184,1.43344514,3555.6,3554.7,7.46]
[1718224633345,3.85944514,3555.5,3554.7,7.46]
[1718224633553,2.426,3555.3,3554.7,7.46]
[1718224633784,2.426,3555.3,3553.8,13.455491]
[1718224633785,1.43344514,3555.2,3553.9,7.46]
[1718224634004,1.47317305,3555.2,3553.6,9.149]
[1718224634303,1.43344514,3555.2,3553.6,9.149]
[1718224634486,0.66972115,3555.1,3553.7,1.0274625]
[1718224634785,1.43344514,3555.0,3553.7,1.0274625]
[1718224635357,0.03959073,3554.9,3553.8,0.05626917]
[1718224635850,2.426,3555.3,3553.9,4.36236]
[1718224636050,2.426,3555.3,3554.1,1.689]
[1718224636293,2.426,3555.3,3554.3,1.689]
[1718224636490,2.426,3555.3,3554.4,0.05625521]
[1718224636650,2.426,3555.3,3554.3,4.689]
[1718224636849,2.426,3555.3,3554.3,1.689]
[1718224637087,3.85944514,3555.3,3554.2,0.79686184]
[1718224637247,0.03972791,3555.2,3554.2,0.79686184]
[1718224639090,0.03972791,3555.2,3554.3,0.05626253]
[1718224639527,0.03972791,3555.2,3554.3,3.05626253]
[1718224640084,0.03972791,3555.2,3554.3,4.74526253]
[1718224640544,1.3505441,3555.9,3554.3,3.0]
[1718224640545,2.3087,3555.1,3554.3,3.0]
[1718224640690,2.3087,3555.1,3554.2,0.79686184]
[1718224640891,2.3087,3555.1,3554.3,1.29458618]
[1718224641630,0.03963646,3555.0,3554.3,1.29458618]
[1718224641991,2.3087,3555.1,3554.3,1.29458618]
[1718224642317,0.03959073,3554.9,3554.4,0.05626251]
[1718224642500,2.3087,3555.1,3554.4,0.05626251]
[1718224642703,2.3087,3555.1,3554.5,0.21477105]
[1718224644660,3.0,3556.3,3554.6,0.03648537]
[1718224644661,2.4077,3555.6,3554.6,0.03648537]
[1718224645146,2.4077,3554.9,3553.9,7.46]
[1718224645641,0.03932926,3554.8,3553.9,7.46]
[1718224645826,0.03932926,3554.8,3554.0,1.1204]
[1718224646524,0.03932926,3554.8,3554.0,4.1204]
[1718224646722,2.4077,3554.9,3554.0,5.8094]
[1718224646951,2.4077,3554.9,3554.1,0.05626551]
[1718224647530,2.4077,3554.9,3554.2,1.689]
[1718224647729,1.3505441,3555.7,3554.2,1.689]
[1718224647730,2.4077,3555.7,3554.3,2.53732596]
[1718224648066,3.84114514,3555.7,3554.5,2.055]
[1718224648260,0.0394271,3555.6,3554.6,0.05625659]
[1718224649365,0.0394271,3555.6,3554.5,2.055]
[1718224649736,0.0394271,3555.6,3554.6,0.05625662]
[1718224650074,0.0394271,3555.6,3554.7,0.68002566]
[1718224650443,3.84114514,3555.7,3554.7,0.68002566]
[1718224651632,3.84114514,3555.7,3554.7,0.73628227]
[1718224654042,3.84114514,3555.7,3554.7,0.68002566]
[1718224654425,3.84114514,3555.7,3554.5,3.0]
[1718224655514,3.72164514,3555.4,3553.9,7.46]
[1718224655671,2.055,3554.8,3553.7,0.57744345]
[1718224655871,2.2882,3554.6,3553.3,7.46]
[1718224656100,2.2882,3554.6,3553.0,7.46]
[1718224656101,1.43344514,3554.5,3553.0,7.46]
[1718224656276,1.47251192,3554.5,3553.0,7.46]
[1718224656487,1.47251192,3554.5,3553.0,9.149]